[Event "FIDE CB Open 2022"]
[Site "Ceske Budejovice"]
[Date "2022.07.07"]
[Round "7.33"]
[White "Sadek, Vojtech"]
[Black "Kosut, Tomas"]
[Result "1-0"]
[ECO "B23"]
[WhiteElo "1973"]
[BlackElo "1820"]
[Annotator "TA"]
[PlyCount "95"]
[EventDate "2022.07.01"]
[EventType "swiss"]
[EventCountry "CZE"]
[SourceTitle "playchess.com"]
[Source "ChessBase"]
[SourceQuality "1"]
[TimeControl "40/5400+30:1800+30"]

{[%evp 9,95,-5,3,3,-2,0,0,-2,29,10,30,31,31,18,29,17,22,8,20,20,20,0,0,0,0,0,0,-3,-12,-14,-12,-43,-20,-31,-13,-17,4,-27,-26,-71,-64,-67,9,0,0,0,9,14,0,0,35,34,33,27,25,19,19,8,8,8,49,0,31,34,60,53,91,40,204,39,79,15,41,29,33,20,36,0,121,121,29978,29979,29979,29979,29979,29980,29980,29981]} 1. e4 {[%emt 0:01:29]} c5 {[%emt 0:00:39]} 2. Nc3 {[%emt 0:00:10]} a6 {[%emt 0:01:01]} 3. a4 {[%emt 0:01:46]} d6 {[%emt 0:01:37]} 4. f4 {[%emt 0:00:10]} Nc6 {[%emt 0:01:55]} 5. Nf3 {[%emt 0:00:06]} Bg4 {[%emt 0:01:44]} 6. Be2 {[%emt 0:03:53] B23: Closed Sicilian: Lines without g3.} g6 {[%emt 0:07:22]} 7. O-O {[%emt 0:04:20]} Bg7 {[%emt 0:03:51]} 8. d3 {[%emt 0:01:21] The position is equal.} Nf6 {[%emt 0:02:07] [#]} 9. Qe1 $146 {[%emt 0:03:12]} (9. h3 $5 {[%cal Rh3g4]} Bxf3 10. Bxf3 $11) ({Predecessor:} 9. h3 Bxf3 10. Bxf3 O-O 11. Ne2 Qc7 12. c3 e5 13. g4 exf4 14. g5 Nd7 15. Nxf4 {0-1 (57) Briem,S (2142)-Gunnarsson,G (2164) Reykjavik 2015}) 9... Bxf3 {[%emt 0:02:58]} 10. Bxf3 {[%emt 0:00:12]} Nd4 {[%emt 0:01:36]} 11. Qf2 {[%emt 0:08:48]} Nd7 {[%emt 0:15:05]} 12. Kh1 {[%emt 0:02:02]} O-O {[%emt 0:00:59]} 13. g4 {[%emt 0:13:22]} Rb8 {[%emt 0:05:00]} 14. Bd1 {[%emt 0:10:08]} b5 {[%emt 0:05:11]} 15. axb5 {[%emt 0:00:11]} axb5 {[%emt 0:00:07]} 16. Ne2 {[%emt 0:05:57]} Ra8 {[%emt 0:06:14]} 17. Rxa8 {[%emt 0:00:10]} Qxa8 {[%emt 0:00:05]} 18. Qh4 {[%emt 0:03:25]} Re8 {[%emt 0:03:44]} 19. f5 {[%emt 0:04:10]} Nxe2 {[%emt 0:04:05]} 20. Bxe2 {[%emt 0:00:04]} Qa4 {[%emt 0:01:49]} 21. b3 {[%emt 0:06:45]} Qa2 {[%emt 0:03:39]} 22. Bd1 {[%emt 0:00:18]} c4 {[%emt 0:02:04]} 23. bxc4 {[%emt 0:02:15]} (23. Qf2 $5 {[%cal Rf5g6]} Rf8 24. bxc4 $11) 23... bxc4 {[%emt 0:00:08]} 24. Bg5 {[%emt 0:06:00]} cxd3 {[%emt 0:03:09]} 25. cxd3 {[%emt 0:00:23]} f6 {[%emt 0:01:03]} ({Better is} 25... Nc5 $15) 26. fxg6 {[%emt 0:02:06]} hxg6 {[%emt 0:00:10]} 27. Be3 {[%emt 0:02:00]} Ne5 {[%emt 0:03:13]} 28. d4 {[%emt 0:01:51]} Qc4 {[%emt 0:04:34]} 29. Qf2 {[%emt 0:03:07]} Nd7 {[%emt 0:04:00]} 30. Be2 {[%emt 0:00:52]} Qc2 {[%emt 0:01:14]} 31. Qf3 {[%emt 0:04:07] [#] Strongly threatening Bb5.} Rb8 {[%emt 0:01:32] Against Bb5} 32. Rc1 $36 {[%emt 0:02:01][%mdl 2048] Black is under pressure.} Rb1 {[%emt 0:00:47]} 33. Rxb1 {[%emt 0:00:04]} (33. Bc4+ {with more complications.} Kf8 34. Rxb1 Qxb1+ 35. Bf1) 33... Qxb1+ {[%emt 0:00:05]} 34. Kg2 {[%emt 0:00:04]} Qc2 {[%emt 0:02:01] Inhibits Bc4+.} (34... e5 {is more complex.} 35. Bc4+ Kf8 36. Bf2 exd4 37. Bxd4 f5) 35. Kg3 {[%emt 0:03:24]} (35. Bf2 $14) 35... Nb6 {[%emt 0:05:05]} 36. Bf2 {[%emt 0:04:30]} Qc7 {[%emt 0:02:39]} 37. Kg2 {[%emt 0:00:56]} Qc2 {[%emt 0:03:00] Inhibits Qb3+.} 38. Bd3 {[%emt 0:00:59]} ({White should play} 38. h4 $16) 38... Qc3 $2 {[%emt 0:03:14]} (38... Qa2 $14) 39. Qe3 $2 {[%emt 0:02:30]} (39. e5 $1 $18) 39... Nd7 {[%emt 0:00:26]} 40. h3 {[%emt 0:00:45]} ({White should try} 40. Bb5 $16 Qxe3 41. Bxe3) 40... Nf8 {[%emt 0:00:43]} 41. Qe2 {[%emt 0:02:33]} Kh7 {[%emt 0:01:53]} 42. Bc4 {[%emt 0:09:31] Against Ne6} Bh6 {[%emt 0:01:15]} 43. Qa2 {[%emt 0:01:01]} Qd2 {[%emt 0:01:50]} (43... Be3 $11 44. Be2 (44. Qa7 Bxf2 45. Qxe7+ Kh6 $11) 44... Kg7) 44. Qa7 $16 {[%emt 0:02:50]} Be3 $2 {[%emt 0:02:03][%mdl 8192] [#]} (44... Qc2 $16) 45. Qxe7+ {[%emt 0:00:07] White mates.} Kh6 {[%emt 0:00:19]} 46. Qxf8+ {[%emt 0:00:10]} Kg5 {[%emt 0:00:06]} 47. h4+ {[%emt 0:00:14]} Kxg4 {[%emt 0:01:17]} 48. Qxf6 {[%emt 0:00:33] Weighted Error Value: White=0.20 (precise) /Black=0.46} 1-0

[Event "FIDE CB Open 2022"]
[Site "Ceske Budejovice"]
[Date "2022.07.07"]
[Round "7.34"]
[White "Chval, Zdenek"]
[Black "Holub, Adam"]
[Result "0-1"]
[ECO "C54"]
[WhiteElo "2063"]
[BlackElo "1817"]
[Annotator "NA RC"]
[PlyCount "68"]
[EventDate "2022.07.01"]
[EventType "swiss"]
[EventCountry "CZE"]
[SourceTitle "playchess.com"]
[Source "ChessBase"]
[SourceQuality "1"]
[TimeControl "40/5400+30:1800+30"]

1. e4 {[%emt 0:00:03]} e5 {[%emt 0:00:32]} 2. Nf3 {[%emt 0:00:04]} Nc6 {[%emt 0:00:13]} 3. Bc4 {[%emt 0:00:17]} Bc5 {[%emt 0:04:11]} 4. O-O {[%emt 0:02:05]} Nf6 {[%emt 0:02:37]} 5. d3 {[%emt 0:02:44]} h6 {[%emt 0:01:57]} 6. c3 {[%emt 0:00:52]} d6 {[%emt 0:02:09]} 7. b4 {[%emt 0:03:50]} Bb6 {[%emt 0:01:00]} 8. a4 {[%emt 0:01:49]} a5 {[%emt 0:05:32]} 9. b5 {[%emt 0:02:12]} Nb8 {[%emt 0:06:57]} 10. Re1 {[%emt 0:11:39]} Bg4 {[%emt 0:11:25]} 11. Nbd2 {[%emt 0:03:57]} Nbd7 {[%emt 0:02:37]} 12. Ba2 {[%emt 0:08:02]} O-O {[%emt 0:03:15]} 13. h3 {[%emt 0:03:16]} Bh5 {[%emt 0:03:33]} 14. Nf1 {[%emt 0:05:23]} Re8 {[%emt 0:03:57]} 15. g4 {[%emt 0:04:39]} Bg6 {[%emt 0:04:25]} 16. Be3 {[%emt 0:02:24]} Nc5 {[%emt 0:04:44]} 17. Bxc5 {[%emt 0:10:41]} Bxc5 {[%emt 0:00:48]} 18. Qb3 {[%emt 0:02:16]} Qd7 {[%emt 0:06:03]} 19. Ne3 {[%emt 0:02:20]} h5 {[%emt 0:06:26]} 20. Nh4 {[%emt 0:06:41]} Kh7 {[%emt 0:10:54]} 21. Nhf5 {[%emt 0:07:08]} c6 {[%emt 0:03:45]} 22. Qd1 {[%emt 0:01:41]} d5 {[%emt 0:01:14]} 23. Qf3 {[%emt 0:02:03]} dxe4 {[%emt 0:02:25]} 24. dxe4 {[%emt 0:01:00]} Qd3 {[%emt 0:01:02]} 25. Ng3 {[%emt 0:05:01]} h4 {[%emt 0:01:19]} 26. Nh5 {[%emt 0:01:29]} Bxh5 {[%emt 0:00:56]} 27. gxh5 {[%emt 0:00:05]} Kg8 {[%emt 0:01:45]} 28. h6 {[%emt 0:04:07]} Qxe4 {[%emt 0:01:37]} 29. Qxe4 {[%emt 0:00:02]} Nxe4 {[%emt 0:00:08]} 30. hxg7 {[%emt 0:00:16]} Nxc3 {[%emt 0:01:14]} 31. bxc6 {[%emt 0:01:28]} bxc6 {[%emt 0:00:42]} 32. Ng4 {[%emt 0:00:41]} Kxg7 {[%emt 0:01:17]} 33. Rxe5 {[%emt 0:01:13]} Rxe5 {[%emt 0:00:26]} 34. Nxe5 {[%emt 0:00:30]} Bd4 {[%emt 0:00:17]} 0-1

[Event "FIDE CB Open 2022"]
[Site "Ceske Budejovice"]
[Date "2022.07.07"]
[Round "7.35"]
[White "Hlavac, Rudolf"]
[Black "Steinbauer, Sebastian"]
[Result "1-0"]
[ECO "C42"]
[WhiteElo "1931"]
[BlackElo "1808"]
[Annotator "TA"]
[PlyCount "59"]
[EventDate "2022.07.01"]
[EventType "swiss"]
[EventCountry "CZE"]
[SourceTitle "playchess.com"]
[Source "ChessBase"]
[SourceQuality "1"]
[TimeControl "40/5400+30:1800+30"]

{[%evp 11,59,28,54,20,40,37,54,30,49,24,75,57,98,105,96,129,100,0,227,229,230,211,239,219,234,211,279,212,310,309,439,390,351,298,281,247,249,255,255,240,343,359,342,320,402,401,559,552,533,543]} 1. e4 {[%emt 0:00:32]} e5 {[%emt 0:00:05]} 2. Nf3 {[%emt 0:00:12]} Nf6 {[%emt 0:00:07]} 3. Nxe5 {[%emt 0:01:30]} d6 {[%emt 0:00:06]} 4. Nf3 {[%emt 0:00:12]} Nxe4 {[%emt 0:00:05]} 5. d4 {[%emt 0:00:12]} d5 {[%emt 0:00:04]} 6. Bd3 {[%emt 0:00:13]} Bg4 {[%emt 0:00:09][%cal Bc8g4,Bg4h5,Bh5g6][%mdl 32] 6...Bd6 is setting a new trend.} 7. Qe2 {[%emt 0:01:17] C42: Petroff Defence: 3 Nxe5 and unusual White 3rd moves.} f5 {[%emt 0:00:26]} 8. h3 {[%emt 0:02:09]} Bh5 {[%emt 0:00:29]} 9. g4 {[%emt 0:02:28] White is slightly better.} Bg6 {[%emt 0:00:25]} (9... fxg4 $2 10. Ne5 $16 (10. Bxe4 dxe4 11. hxg4 Bf7 $16)) 10. Ne5 {[%emt 0:07:50] And now h4 would win.} Be7 {[%emt 0:01:12]} (10... Bd6 $11) 11. Bxe4 {[%emt 0:12:18]} fxe4 {[%emt 0:00:27]} 12. Qb5+ {[%emt 0:00:53]} Nd7 {[%emt 0:21:09] [#]} 13. Nxg6 $146 {[%emt 0:05:56] 0x0.0005ea9d881bdp-1022s more active pieces.} (13. Qxb7 Nxe5 14. dxe5 O-O $15) ({Predecessor:} 13. Qxd5 Nxe5 14. Qxe5 O-O 15. Be3 Bf6 16. Qb5 Rf7 17. c3 c6 18. Qe2 Bh4 19. Nd2 {1-0 (36) Franco,W (2089)-Jimenez,L (1958) Bogota 2011}) 13... hxg6 {[%emt 0:01:16]} 14. Nc3 {[%emt 0:05:44]} (14. Qxb7 $6 Nb6 $11) ({Better is} 14. Be3 $16) 14... Bg5 $2 {[%emt 0:02:02] White stays focused until the end.} (14... c6 $1 $11 {and Black has nothing to worry.} 15. Qxb7 Qc8 16. Qxc8+ Rxc8) 15. Qxd5 $18 {[%emt 0:05:06]} Bxc1 {[%emt 0:00:15]} 16. Qxe4+ {[%emt 0:02:51]} (16. Rxc1 $6 Nf6 17. Qxb7 O-O $16) 16... Kf7 {[%emt 0:00:25]} 17. Qd5+ {[%emt 0:00:30]} (17. Rxc1 $2 Re8 18. Qe3 Rxe3+ 19. fxe3 Qh4+ 20. Kd2 Kg8 $19) 17... Kf8 {[%emt 0:00:54]} 18. Rxc1 {[%emt 0:00:25]} Qe7+ {[%emt 0:00:20]} 19. Kd2 {[%emt 0:01:39]} Rd8 {[%emt 0:00:48]} (19... Nb6 $142 20. Qxb7 Qb4) 20. Rce1 {[%emt 0:02:56]} (20. Qxb7 Nc5 21. Qf3+ Qf7 22. Qxf7+ Kxf7 $18) 20... Qb4 {[%emt 0:00:55]} (20... Qf7 $142 21. Re3 Qxd5 22. Nxd5 Nb6) 21. Kc1 {[%emt 0:01:04] [#] Re6 is the strong threat.} c6 {[%emt 0:00:34]} 22. Qe6 {[%emt 0:04:51] Threatens to win with g5.} Nf6 {[%emt 0:01:06]} 23. a3 {[%emt 0:11:04]} Qxd4 {[%emt 0:00:56]} 24. Qe7+ {[%emt 0:01:20]} Kg8 {[%emt 0:00:16]} 25. Qxb7 {[%emt 0:00:41]} (25. Kb1 $6 Rd7 26. Qe6+ Kh7 $16) 25... Kh7 {[%emt 0:00:27]} (25... Qb6 $142 26. Qxb6 axb6) 26. Re7 {[%emt 0:07:43]} ({Weaker is} 26. Kb1 Rb8 27. Ne2 (27. Qxc6 Rhc8 $17) 27... Qe5 $17) 26... Rhg8 {[%emt 0:00:32]} 27. Qxa7 {[%emt 0:00:30]} ({Not} 27. Kb1 Nd5 28. Nxd5 Rb8 29. Rxg7+ (29. Nf6+ $2 Qxf6 30. g5 Qf3 $19) 29... Qxg7 30. Nf6+ Kh8 31. Qxg7+ (31. Qxc6 $2 Rb6 $19) 31... Rxg7 $14) 27... Qd2+ {[%emt 0:00:33]} 28. Kb1 {[%emt 0:00:04]} Rb8 {[%emt 0:00:14] [#]} 29. Rxg7+ $3 {[%emt 0:02:20][%mdl 512]} Rxg7 {[%emt 0:02:25]} 30. Qxb8 {[%emt 0:01:31] Weighted Error Value: White=0.18 (very precise) /Black=0.52} 1-0

[Event "FIDE CB Open 2022"]
[Site "Ceske Budejovice"]
[Date "2022.07.07"]
[Round "7.37"]
[White "Slaby, Matej"]
[Black "Svanda, Adam"]
[Result "1/2-1/2"]
[ECO "D05"]
[WhiteElo "1796"]
[BlackElo "1918"]
[Annotator "TA"]
[PlyCount "48"]
[EventDate "2022.07.01"]
[EventType "swiss"]
[EventCountry "CZE"]
[SourceTitle "playchess.com"]
[Source "ChessBase"]
[SourceQuality "1"]
[TimeControl "40/5400+30:1800+30"]

{[%evp 17,48,0,12,-16,61,0,60,22,18,-27,-20,-31,-28,-32,0,0,0,-22,0,-14,0,-48,0,-48,-52,-30,-11,-14,-14,-7,0,0,0]} 1. Nf3 {[%emt 0:00:05]} c5 {[%emt 0:00:08]} 2. c3 {[%emt 0:00:10]} Nf6 {[%emt 0:01:22]} 3. d4 {[%emt 0:00:09]} e6 {[%emt 0:00:26]} 4. e3 {[%emt 0:00:14]} b6 {[%emt 0:00:47]} 5. Nbd2 {[%emt 0:00:17]} Bb7 {[%emt 0:00:21]} 6. Bd3 {[%emt 0:00:14]} d5 {[%emt 0:02:43]} 7. O-O {[%emt 0:00:28]} Bd6 {[%emt 0:00:05]} 8. Ne5 {[%emt 0:02:23] 8.Qe2 is not played anymore.} Qc7 {[%emt 0:02:43]} 9. f4 {[%emt 0:01:16]} Nc6 {[%emt 0:11:32]} 10. Qe2 {[%emt 0:02:40] D05: Colle System with ...e6.} O-O-O {[%emt 0:02:34] [#]} ({Black should try} 10... O-O $11) 11. Ba6 $146 {[%emt 0:10:24] White is more active.} ({Better is} 11. b3 $14) ({Predecessor:} 11. a4 a5 12. b3 Ne8 13. Bb2 f6 14. Nxc6 Bxc6 15. c4 Kb7 16. Rac1 Qe7 17. g3 {1-0 (28) Peric,B (2096)-Bedic,S (1881) Otocec 2021}) 11... Ne4 {[%emt 0:02:33]} (11... Bxa6 $11 12. Qxa6+ Kb8) 12. Bxb7+ {[%emt 0:01:17] White is slightly better.} Kxb7 {[%emt 0:00:14]} 13. Nxc6 {[%emt 0:00:32]} Qxc6 {[%emt 0:00:16]} 14. Nxe4 {[%emt 0:00:43]} dxe4 {[%emt 0:00:07]} 15. a4 {[%emt 0:00:54]} a5 {[%emt 0:02:19]} 16. Bd2 {[%emt 0:02:40]} c4 {[%emt 0:03:32]} 17. Rfb1 {[%emt 0:04:02]} (17. f5 $5 {[%cal Rf5e6]}) 17... Rb8 {[%emt 0:03:47]} 18. Be1 {[%emt 0:04:17]} f5 {[%emt 0:04:11]} 19. Rd1 {[%emt 0:02:42]} (19. b3 $11) 19... Be7 {[%emt 0:02:01]} (19... h6 $15 {is superior.}) 20. Qh5 {[%emt 0:01:28]} (20. b3 $11) 20... g6 $15 {[%emt 0:00:45]} 21. Qh6 {[%emt 0:00:24]} Bf6 {[%emt 0:00:28] Against Qg7+} 22. Bh4 {[%emt 0:00:51] The position is equal.} Bxh4 {[%emt 0:00:25]} 23. Qxh4 {[%emt 0:00:06]} Rbd8 {[%emt 0:00:29]} 24. Qh6 {[%emt 0:02:50]} Rd7 {[%emt 0:01:59] Weighted Error Value: White=0.24 (precise) /Black=0.30} 1/2-1/2

[Event "FIDE CB Open 2022"]
[Site "Ceske Budejovice"]
[Date "2022.07.07"]
[Round "7.38"]
[White "Wojdyla, Alex"]
[Black "Stastna, Martina"]
[Result "1/2-1/2"]
[ECO "A14"]
[WhiteElo "1782"]
[BlackElo "1912"]
[Annotator "TA"]
[PlyCount "102"]
[EventDate "2022.07.01"]
[EventType "swiss"]
[EventCountry "CZE"]
[SourceTitle "playchess.com"]
[Source "ChessBase"]
[SourceQuality "1"]
[TimeControl "40/5400+30:1800+30"]

{[%evp 9,102,20,34,32,32,29,39,41,40,25,52,13,20,-8,0,0,113,41,75,32,32,-58,-50,-77,-65,-84,-83,-55,-45,-93,-89,-82,-22,-27,-14,-19,162,155,452,295,895,0,14,0,0,0,0,0,0,0,0,-72,-72,-62,-95,-348,-362,-330,-83,-91,-87,-91,-50,-52,-72,-69,0,0,0,0,0,-8,0,0,0,0,0,0,0,0,260,0,0,0,0,0,0,0,0,0,8,8,8,0,1]} 1. c4 {[%emt 0:00:08]} e6 {[%emt 0:00:32]} 2. g3 {[%emt 0:00:18]} d5 {[%emt 0:00:28]} 3. Bg2 {[%emt 0:01:02]} Nf6 {[%emt 0:00:59]} 4. Nf3 {[%emt 0:01:00]} c5 {[%emt 0:03:09]} 5. O-O {[%emt 0:01:09]} Be7 {[%emt 0:00:58]} 6. cxd5 {[%emt 0:03:51] A14: English Opening: 1...e6 with b3 by White.} exd5 {[%emt 0:04:25]} 7. d4 {[%emt 0:00:30]} c4 {[%emt 0:02:32]} 8. Nc3 {[%emt 0:01:43] White is slightly better.} O-O {[%emt 0:01:11]} 9. Ne5 {[%emt 0:04:12]} Be6 {[%emt 0:08:51] [#]} 10. Re1 $146 {[%emt 0:14:41][%cal Oe5c4]} ({Predecessor:} 10. Qc2 Nc6 11. Rd1 Qb6 12. Nxc6 bxc6 13. Bg5 Rab8 14. Rd2 h6 15. Bf4 Rb7 16. e4 {0-1 (23) Sanchez Arroyave,J (2089)-Salcedo,P (2141) Medellin 2022}) 10... Nbd7 {[%emt 0:03:56]} 11. f4 {[%emt 0:09:43]} Re8 {[%emt 0:10:02]} 12. e3 {[%emt 0:07:29]} Qa5 {[%emt 0:12:17]} (12... Bb4 $11 {remains equal.}) 13. h3 {[%emt 0:15:48]} ({White should play} 13. Rf1 $1 $16) 13... Red8 {[%emt 0:15:06]} 14. g4 {[%emt 0:04:15] White is more active.} Nxe5 {[%emt 0:04:47]} 15. dxe5 {[%emt 0:03:23]} (15. fxe5 $14 Ne8 16. Ne2) 15... Ne4 $1 $15 {[%emt 0:01:07]} 16. f5 {[%emt 0:05:56]} Nxc3 {[%emt 0:02:11]} 17. bxc3 {[%emt 0:00:17]} Bc8 {[%emt 0:00:29]} 18. Qd2 {[%emt 0:04:09]} Qc7 {[%emt 0:02:13]} 19. Qd4 {[%emt 0:01:57]} (19. e4 $15 dxe4 20. Qf4) 19... Bc5 {[%emt 0:00:33]} 20. Qf4 {[%emt 0:04:07]} f6 {[%emt 0:02:17]} (20... b6 $17 {aiming for ...f6.} 21. f6 Bb7 22. fxg7 Re8) 21. Rd1 $1 $11 {[%emt 0:01:05]} fxe5 {[%emt 0:03:08]} 22. Qg3 {[%emt 0:02:21]} d4 $2 {[%emt 0:05:01]} (22... Kh8 $11 {and Black has nothing to worry.}) 23. exd4 $18 {[%emt 0:01:25]} Qb8 $2 {[%emt 0:04:15]} (23... Qd6 $16 {was called for.}) 24. Kh1 {[%emt 0:05:04]} exd4 $2 {[%emt 0:00:22]} (24... Be7 25. Be3 Qc7 26. dxe5 Bd7) 25. Qh4 $2 {[%emt 0:00:21]} (25. Bf4 $18 Rd6 26. Rxd4) 25... Bd7 $11 {[%emt 0:00:58]} 26. Bd5+ {[%emt 0:00:27]} Kh8 {[%emt 0:01:12] Strongly threatening ...Ba4.} 27. f6 $1 {[%emt 0:00:50] White wants to mate with fxg7+.} Qe5 $36 {[%emt 0:01:34][%mdl 2048] Black has good play.} 28. fxg7+ {[%emt 0:03:29]} Qxg7 {[%emt 0:00:32]} 29. Bg5 {[%emt 0:01:03] Against Be7. White threatens Bf6 and mate.} Rf8 {[%emt 0:00:48] Inhibits Bf6. Threatens to win with ...Rae8.} 30. Rf1 {[%emt 0:01:48]} (30. Bh6 $1 $11 Qe5 31. Bxb7) 30... dxc3 $17 {[%emt 0:03:52] ...Rae8 is the strong threat.} 31. Bf6 {[%emt 0:01:14]} Rxf6 {[%emt 0:00:07]} 32. Qxf6 {[%emt 0:00:06][%mdl 8192]} (32. Rxf6 $17 {was the only defense.} c2 33. Rc1) 32... Qxf6 $19 {[%emt 0:00:12]} 33. Rxf6 {[%emt 0:00:04]} c2 $2 {[%emt 0:00:29]} (33... Rd8 $19 {and Black stays clearly on top.} 34. Rc1 Ba4 35. Bxc4 c2) 34. Rc1 $17 {[%emt 0:02:01] [#]} Ba4 {[%emt 0:00:42]} 35. Be4 {[%emt 0:00:23]} Be3 {[%emt 0:00:29] Against Rh6. A strong pair of Bishops.} (35... Kg7 {seems wilder.} 36. Re6 Ba3 37. Rxc2 Bxc2 38. Bxc2 Rd8) 36. Rxc2 {[%emt 0:00:26]} Bxc2 {[%emt 0:00:08]} 37. Bxc2 $15 {[%emt 0:00:03][%mdl 4096] Endgame KRB-KRB} c3 {[%emt 0:01:02]} ({Better is} 37... Rd8 $15 38. Rf7 Rd2 39. Rxh7+ Kg8) 38. Rf7 $11 {[%emt 0:00:29][%csl LRb7,LRh7]} h6 {[%emt 0:01:10]} 39. Rxb7 {[%emt 0:00:29]} Rf8 {[%emt 0:00:26]} 40. Re7 {[%emt 0:00:37]} Rf1+ {[%emt 0:01:53]} 41. Kg2 {[%emt 0:30:18]} Rf2+ {[%emt 0:30:07]} 42. Kg3 {[%emt 0:00:52]} Bc5 {[%emt 0:00:00]} 43. Rc7 {[%emt 0:00:00]} Rxc2 {[%emt 0:00:00]} 44. Rxc5 {[%emt 0:00:00] KR-KR} Rc1 $2 {[%emt 0:00:00][%mdl 8192] [#]} (44... Rxa2 $11 45. Rxc3 Kg7) 45. Kf2 $2 {[%emt 0:00:00]} (45. Kh4 $1 $18 {[%cal Rh4h5]}) 45... Rc2+ {[%emt 0:00:00] The position is equal.} 46. Ke3 {[%emt 0:00:00]} Rxa2 {[%emt 0:00:00]} 47. Rxc3 {[%emt 0:00:00]} Kg7 {[%emt 0:00:00]} 48. Kf4 {[%emt 0:00:00]} Rf2+ {[%emt 0:00:00]} 49. Kg3 {[%emt 0:00:00]} Rf8 {[%emt 0:00:00]} 50. Rc7+ {[%emt 0:00:00]} Rf7 {[%emt 0:00:00]} 51. Rc6 {[%emt 0:00:00]} Rf6 {[%emt 0:00:00] White used his chance.  Weighted Error Value: White=0.44/Black=0.51} 1/2-1/2

[Event "FIDE CB Open 2022"]
[Site "Ceske Budejovice"]
[Date "2022.07.07"]
[Round "7.39"]
[White "Vojtek, Pavel"]
[Black "Saravanan Durga"]
[Result "0-1"]
[ECO "A17"]
[WhiteElo "1711"]
[BlackElo "1908"]
[Annotator "TA"]
[PlyCount "66"]
[EventDate "2022.07.01"]
[EventType "swiss"]
[EventCountry "CZE"]
[SourceTitle "playchess.com"]
[Source "ChessBase"]
[SourceQuality "1"]
[TimeControl "40/5400+30:1800+30"]

{[%evp 9,66,-42,-14,-42,-12,-8,-10,-38,-33,-49,-32,-47,-35,-67,-65,-70,-53,-51,-57,-85,-80,-91,-82,-90,-76,-101,-79,-110,-70,-93,-72,-225,-223,-308,-308,-310,-308,-305,-318,-308,-307,-322,-301,-363,-333,-432,-444,-741,-693,-762,-725,-2252,-2222,-2202,-2136,-1976,-1929,-1600,-1416]} 1. c4 {[%emt 0:00:02]} e6 {[%emt 0:00:08]} 2. g3 {[%emt 0:00:06]} d5 {[%emt 0:00:18]} 3. Bg2 {[%emt 0:01:09]} Nf6 {[%emt 0:00:12]} 4. Nc3 {[%emt 0:01:47]} d4 {[%emt 0:03:09]} 5. Ne4 {[%emt 0:00:40]} Be7 {[%emt 0:02:26]} 6. d3 {[%emt 0:04:24] A17: English Opening: 1...Nf6 with ...Bb4.} O-O {[%emt 0:02:09]} 7. Nxf6+ {[%emt 0:05:46]} Bxf6 {[%emt 0:00:06]} 8. Qb3 {[%emt 0:01:50] [#] The position is equal.} c6 $146 {[%emt 0:15:56]} ({Predecessor:} 8... Nd7 9. Nf3 Nc5 10. Qa3 Be7 11. b4 Na6 12. Bd2 c5 13. bxc5 Bxc5 14. Qb2 f6 {0-1 (84) Mihalinec,D (2238)-Gajic,M (2127) Croatia 2011}) 9. Nf3 {[%emt 0:02:29]} e5 {[%emt 0:12:02]} 10. O-O {[%emt 0:10:03]} a5 {[%emt 0:18:10]} 11. Nd2 {[%emt 0:10:17]} Na6 {[%emt 0:01:37]} 12. Qd1 {[%emt 0:09:00]} Bf5 {[%emt 0:10:01]} 13. Ne4 {[%emt 0:12:18]} Be7 {[%emt 0:01:03]} 14. b3 {[%emt 0:08:55]} Bg6 {[%emt 0:08:37]} 15. Nd2 {[%emt 0:08:45]} Nc5 {[%emt 0:02:33]} 16. Ba3 {[%emt 0:02:22]} f5 {[%emt 0:10:32] Black is more active.} 17. Qc1 {[%emt 0:05:13]} Re8 {[%emt 0:01:20]} 18. Qc2 {[%emt 0:05:07]} Bf8 {[%emt 0:02:50]} 19. Kh1 {[%emt 0:02:01]} Rc8 {[%emt 0:02:37]} 20. f4 $2 {[%emt 0:02:06] [#] This costs White the game.} (20. Bh3 $17 {is a better defense.}) 20... exf4 $19 {[%emt 0:00:37]} 21. Rxf4 {[%emt 0:00:56]} Ne6 {[%emt 0:00:22]} (21... Rxe2 $2 22. Bxc5 Bxc5 23. Bf1 $19) 22. Bxf8 {[%emt 0:01:40][%cal Of8a3]} Nxf4 {[%emt 0:00:03]} ({And not} 22... Rxf8 23. Rf2 $15) (22... Nxf8 23. Re1 $11) ({Worse is} 22... Kxf8 23. Rf2 $11) 23. gxf4 {[%emt 0:00:45]} Kxf8 {[%emt 0:00:27]} ({Not} 23... Rxf8 $2 24. Nf3 $19) 24. Nf3 {[%emt 0:00:38]} Re3 {[%emt 0:01:03]} 25. Qd2 {[%emt 0:03:33]} c5 {[%emt 0:03:29]} 26. Ng5 {[%emt 0:00:31][%cal Od2e3]} Qe7 {[%emt 0:00:23]} 27. Re1 {[%emt 0:00:55]} b6 {[%emt 0:00:45] [#] Threatens to win with ...Re8. Black is clearly winning.} 28. Nf3 {[%emt 0:00:39]} (28. Bf3 $142) 28... Re8 {[%emt 0:00:20][%cal Re3e2]} 29. Ne5 {[%emt 0:00:25]} Bh5 {[%emt 0:00:57]} 30. Bf3 {[%emt 0:00:25]} Bxf3+ {[%emt 0:00:17]} 31. exf3 {[%emt 0:00:01]} Rxe1+ {[%emt 0:00:46]} 32. Qxe1 {[%emt 0:00:01]} g5 {[%emt 0:00:12]} 33. Qd2 {[%emt 0:01:39]} Qd6 {[%emt 0:00:45] Weighted Error Value: White=0.55/Black=0.07 (flawless)} 0-1